bitfinex/quotes_ETHUSD_20240925
["timestamp","ask_amount","ask_price","bid_price","bid_amount"]
[1727288673119,0.14145087,2583.1,2582.6,3.87198]
[1727288674220,0.14145087,2583.1,2582.4,3.87225]
[1727288674372,0.14145087,2583.1,2582.5,3.87212]
[1727288674373,0.8127,2583.0,2582.5,3.87212]
[1727288674777,0.8127,2583.0,2582.4,3.87236]
[1727288675003,0.14145087,2582.9,2582.4,3.87236]
[1727288675805,0.14145087,2582.9,2582.7,3.87181]
[1727288676075,0.14145087,2582.9,2582.7,3.87183]
[1727288676289,0.14145087,2582.9,2582.7,3.87177]
[1727288677092,0.14145087,2582.9,2582.7,7.74361]
[1727288677413,0.14145087,2582.9,2582.7,3.87177]
[1727288677738,0.14145087,2582.9,2582.7,7.74361]
[1727288678195,0.14145087,2582.9,2582.8,3.87176]
[1727288678389,0.14145087,2582.9,2582.8,8.29039451]
[1727288678922,0.7653,2583.3,2583.0,3.87145]
[1727288679271,0.14145087,2583.2,2583.0,3.87145]
[1727288679470,0.7653,2583.3,2583.0,3.87145]
[1727288679676,0.14145087,2583.2,2583.0,3.87145]
[1727288679927,0.7653,2583.3,2582.7,3.87186]
[1727288680108,0.14145087,2583.1,2582.6,3.87197]
[1727288680277,4.63632,2583.3,2582.6,3.87197]
[1727288680477,0.92685087,2583.2,2582.6,3.87197]
[1727288680814,5.66490196,2583.2,2582.6,3.87205]
[1727288681700,0.7729,2583.1,2582.6,3.87205]
[1727288681905,0.14098784,2583.0,2582.6,3.87205]
[1727288682942,0.14098784,2583.0,2582.9,3.87161]
[1727288683149,0.14098784,2583.0,2582.9,5.10710837]
[1727288683455,3.9072216,2584.0,2583.3,3.87101]
[1727288683456,0.8086,2583.9,2583.3,3.87101]
[1727288683606,0.13581866,2583.8,2583.5,3.87071]
[1727288683938,0.13581866,2583.8,2583.5,7.51499151]
[1727288684125,0.13581866,2583.8,2583.5,3.7213026]
[1727288685167,0.13581866,2583.8,2583.5,0.07702109]
[1727288685301,0.13581866,2583.8,2583.3,3.64428151]
[1727288685504,4.40432769,2583.8,2583.2,3.87108]
[1727288685747,0.7919,2583.7,2583.2,3.87108]
[1727288686037,0.13584538,2583.6,2583.2,3.87108]
[1727288686224,0.13584538,2583.6,2583.1,3.64428151]
[1727288686424,0.13584538,2583.6,2583.1,3.8713]
[1727288687013,0.13584538,2583.6,2582.9,4.03144251]
[1727288687220,0.13584538,2583.6,2583.0,3.87139]
[1727288687407,0.13584538,2583.6,2583.1,3.87131]
[1727288688711,0.13584538,2583.6,2583.2,3.87109]
[1727288690842,0.13584538,2583.6,2583.4,3.87079]
[1727288692550,0.13584538,2583.6,2583.3,7.59232217]
[1727288692718,0.13584538,2583.6,2583.4,3.87076]
[1727288694938,0.13584538,2583.6,2583.2,3.87103]
[1727288695524,0.13584538,2583.6,2583.3,3.8709]
[1727288695814,0.13584538,2583.6,2583.4,3.87086]
[1727288696039,0.13584538,2583.6,2583.3,3.871]
[1727288698362,0.13584538,2583.6,2583.5,7.51499151]
[1727288698710,0.13584538,2583.6,2583.5,3.87071]
[1727288700927,0.13584538,2583.6,2583.4,0.07702402]
[1727288701168,0.13584538,2583.6,2583.4,3.94786402]
[1727288701660,0.13584538,2583.6,2583.5,3.64428151]
[1727288701862,0.13584538,2583.6,2583.5,8.07620788]
[1727288702165,0.7997,2583.9,2583.5,8.07620788]
[1727288702374,0.13629061,2583.6,2583.5,8.07620788]
[1727288702681,0.13685158,2583.6,2583.5,8.07620788]
[1727288703032,0.13685158,2583.6,2583.5,4.20549788]
[1727288703272,0.0371716,2584.0,2583.5,8.07620788]
[1727288703480,0.13685158,2583.9,2583.7,7.51462151]
[1727288703633,0.13685158,2583.9,2583.7,11.38490151]
[1727288704045,0.13685158,2583.9,2583.8,3.87026]
[1727288705382,0.13685158,2583.9,2583.8,5.05079713]
[1727288705745,0.13685158,2583.9,2583.8,3.87026]
[1727288710545,0.13685158,2583.9,2583.8,4.65976]
[1727288716982,0.13685158,2583.9,2583.8,3.87026]
[1727288717212,0.13685158,2583.9,2583.6,3.87053]
[1727288717418,0.13685158,2583.9,2583.3,7.51520151]
[1727288717705,0.13685158,2583.9,2583.7,3.87041]
[1727288719057,0.13685158,2583.9,2583.5,7.51491151]
[1727288719183,0.13685158,2583.9,2583.5,3.87063]
[1727288719367,4.00700158,2583.9,2583.4,3.87084]
[1727288720291,4.00700158,2583.9,2583.5,3.8707]
[1727288720292,0.13685158,2583.9,2583.5,3.8707]
[1727288720500,0.13685158,2583.9,2583.5,3.87063]
[1727288721377,0.13685158,2583.9,2583.5,7.74127]
[1727288721578,0.13685158,2583.9,2583.6,3.87056]
[1727288721975,0.13685158,2583.9,2583.5,3.87063]
[1727288722199,0.13685158,2583.9,2583.7,3.87033]
[1727288722515,0.13685158,2583.9,2583.8,3.87026]
[1727288723106,0.0371716,2584.0,2583.8,3.87026]
[1727288723281,0.0371716,2584.0,2583.9,7.51439151]
[1727288726115,0.0371716,2584.0,2583.9,3.87011]
[1727288726797,0.0371716,2584.0,2583.8,7.74044]
[1727288727003,0.0371716,2584.0,2583.8,3.87018]
[1727288727196,0.0371716,2584.0,2583.9,3.87011]
[1727288734503,0.0371716,2584.0,2583.9,7.51439151]
[1727288734826,0.0371716,2584.0,2583.9,8.65284766]
[1727288734827,0.17476194,2584.0,2583.9,8.65284766]
[1727288735630,0.17476194,2584.0,2583.9,9.43074766]
[1727288736121,0.0371716,2584.0,2583.9,9.43074766]
[1727288741963,0.0371716,2584.0,2583.5,5.00929415]
[1727288741964,0.0371716,2584.0,2583.7,3.8703]
[1727288742126,0.0371716,2584.0,2583.4,0.8192]
[1727288742330,0.13848018,2583.9,2583.7,3.87031]
[1727288742522,0.7843,2583.8,2583.6,3.87043]
[1727288742723,0.7843,2583.8,2583.5,3.87069]
[1727288742934,0.13848018,2583.7,2583.4,3.87075]
[1727288743163,2.81368733,2583.8,2583.4,3.87075]
[1727288743366,0.13820436,2583.6,2583.4,3.87075]
[1727288743534,2.81368733,2583.8,2583.4,7.74152]
[1727288743739,0.13820436,2583.7,2583.4,3.87075]
[1727288743941,2.81368733,2583.8,2583.4,3.87075]
[1727288744269,0.13796408,2583.7,2583.6,3.87056]
[1727288744564,2.81505871,2583.8,2583.6,3.87056]
[1727288744769,0.13796408,2583.7,2583.4,3.87075]
[1727288745280,2.32606099,2583.7,2583.2,3.87107]
[1727288745562,2.32606099,2583.7,2583.1,3.87131]
[1727288745563,2.03075871,2583.4,2583.1,3.87131]
[1727288745773,2.03075871,2583.4,2582.8,3.87165]
[1727288745928,0.96776408,2583.3,2582.8,4.70001315]
[1727288746134,0.96776408,2583.3,2583.0,3.87136]
[1727288746464,0.96776408,2583.3,2583.1,3.8713]
[1727288749231,0.96776408,2583.3,2583.1,3.87122]
[1727288750035,0.96776408,2583.3,2583.1,7.74243]
[1727288750577,0.96776408,2583.3,2583.2,3.87116]
[1727288756837,0.13796408,2583.3,2583.2,3.87116]
[1727288757272,0.8225,2583.4,2583.3,3.87101]
[1727288764706,0.95925365,2583.4,2583.3,3.87101]
[1727288766568,0.13675365,2583.4,2583.3,3.87101]
[1727288766767,0.7956,2583.6,2583.4,3.87085]
[1727288767070,0.13675365,2583.5,2583.4,3.87085]
[1727288767665,0.7956,2583.9,2583.5,3.87059]
[1727288767903,0.13675365,2583.8,2583.6,3.87056]
[1727288769203,0.13675365,2583.8,2583.7,3.87041]
[1727288770989,0.13675365,2583.8,2583.6,3.87055]
[1727288771309,0.13675365,2583.8,2583.7,3.87041]
[1727288771485,0.13675365,2583.8,2583.6,3.87049]
[1727288771808,0.13675365,2583.8,2583.7,3.87041]
[1727288773916,0.13675365,2583.8,2583.7,8.36579543]
[1727288774122,0.0371716,2584.0,2583.9,3.87011]
[1727288774276,0.17430804,2584.0,2583.9,7.59137254]
[1727288774679,0.17430804,2584.0,2583.9,7.51439151]
[1727288774980,0.17430804,2584.0,2583.9,8.73026366]
[1727288776411,0.17430804,2584.0,2583.9,9.55186366]
[1727288776830,2.06380008,2584.8,2583.9,12.28026366]
[1727288776994,0.0371716,2584.8,2584.7,8.33480151]
[1727288780227,0.0371716,2584.8,2584.7,3.86892]
[1727288780409,0.0371716,2584.8,2584.6,3.86905]
[1727288780607,0.0371716,2584.8,2584.4,3.86926]
[1727288781295,0.7661,2584.6,2584.2,3.86959]
[1727288781496,0.7661,2584.6,2584.2,3.86958]
[1727288782000,0.7661,2584.6,2584.4,3.86934]
[1727288782612,0.7661,2584.6,2584.2,3.86955]
[1727288782917,4.63517,2584.6,2584.1,3.8698]
[1727288783123,5.49896271,2584.6,2584.1,3.86974]
[1727288783780,5.49896271,2584.6,2583.9,7.51432151]
[1727288783982,3.86922,2584.5,2584.0,3.86988]
[1727288784228,5.49896271,2584.6,2584.0,3.86988]
[1727288784520,0.13354403,2584.5,2584.0,3.86988]
[1727288785108,0.6967947,2584.5,2583.9,3.87004]
[1727288785535,3.86938,2584.4,2583.9,3.87003]
[1727288786114,0.8322,2584.2,2583.9,3.87003]
[1727288786485,0.8322,2584.2,2583.9,3.87011]
[1727288786718,0.13354403,2584.1,2583.7,7.51463151]
[1727288787028,0.13354403,2584.1,2583.8,3.87025]
[1727288787698,0.13354403,2584.1,2583.9,3.8701]
[1727288787903,0.13354403,2584.1,2583.9,3.86998]
[1727288788203,0.13354403,2584.1,2584.0,3.94694271]
[1727288788587,0.7862,2584.4,2584.0,3.86996]
[1727288788925,0.13354403,2584.3,2584.0,3.86996]
[1727288789836,0.13354403,2584.3,2584.1,3.86969]
[1727288790133,0.13354403,2584.3,2584.2,3.86966]
[1727288790330,0.13354403,2584.3,2584.2,5.16571181]
[1727288790633,0.8233716,2584.8,2584.5,3.8692]
[1727288790785,0.8233716,2584.8,2584.6,3.86899]
[1727288790984,0.0371716,2584.8,2584.7,7.51320151]
[1727288791207,0.0371716,2584.8,2584.7,8.81462178]
[1727288791424,0.0371716,2584.8,2584.7,8.73774303]
[1727288794930,0.0371716,2584.8,2584.6,7.73796]
[1727288795227,0.0371716,2584.8,2584.7,3.86892]
[1727288796683,0.0371716,2584.8,2584.7,7.51320151]
[1727288800425,0.0371716,2584.8,2584.7,8.34640467]
[1727288800621,0.0371716,2584.8,2584.7,8.26950151]
[1727288800829,0.0371716,2584.8,2584.7,9.48334866]
[1727288806086,0.0371716,2584.8,2584.7,5.08276715]
[1727288807153,0.0371716,2584.8,2584.7,8.72704866]
[1727288807687,0.1711425,2584.8,2584.7,8.72704866]
[1727288808269,0.0371716,2584.8,2584.7,8.72704866]
[1727288808458,0.1711425,2584.8,2584.7,8.72704866]
[1727288808768,0.0371716,2584.8,2584.7,8.72704866]
[1727288808971,0.0371716,2584.8,2584.7,9.49414866]
[1727288810363,0.17107136,2584.8,2584.7,9.49414866]
[1727288810561,0.0371716,2584.8,2584.7,9.49414866]
[1727288810765,0.17107136,2584.8,2584.7,9.49414866]
[1727288811074,0.0371716,2584.8,2584.7,9.49414866]
[1727288813929,0.0371716,2584.8,2584.7,10.04414866]
[1727288816210,0.0371716,2584.8,2584.7,9.49414866]
[1727288817617,0.0371716,2584.8,2584.7,8.72704866]
[1727288817822,0.16825704,2584.8,2584.7,5.08276715]
[1727288818015,0.16825704,2584.8,2584.7,3.86892]
[1727288818752,0.92815704,2584.8,2584.7,3.86892]
[1727288819627,0.92815704,2584.8,2584.6,3.869]
[1727288819957,0.92815704,2584.8,2584.7,3.86892]
[1727288820749,0.92815704,2584.8,2584.7,3.86754297]
[1727288821249,0.16825704,2584.8,2584.7,8.26382448]
[1727288821447,0.16825704,2584.8,2584.7,9.47711093]
[1727288822353,0.16825704,2584.8,2584.7,10.02711093]
[1727288822518,0.0371716,2584.8,2584.7,10.02711093]
[1727288831964,0.0371716,2584.8,2584.7,9.47711093]
[1727288832176,0.0371716,2584.8,2584.7,0.752]
[1727288832345,0.16833722,2584.8,2584.7,0.752]
[1727288832746,0.16833722,2584.8,2584.7,8.26520151]
[1727288833343,0.16833722,2584.8,2584.7,7.51320151]
[1727288837080,0.0371716,2584.8,2584.7,7.51320151]
[1727288837380,0.1680878,2584.8,2584.7,3.86892]
[1727288837754,0.1680878,2584.8,2584.7,7.51320151]
[1727288841267,0.1680878,2584.8,2584.7,8.65142566]
[1727288841475,0.0371716,2584.8,2584.7,8.65142566]
[1727288846766,0.0371716,2584.8,2584.7,7.51320151]
[1727288849874,0.16806107,2584.8,2584.7,7.51320151]
[1727288851067,0.0371716,2584.8,2584.7,7.51320151]
[1727288856377,0.16806107,2584.8,2584.7,7.51320151]
[1727288856616,0.0371716,2584.8,2584.7,7.51320151]
[1727288856780,0.16806107,2584.8,2584.7,7.51320151]
[1727288856978,0.0371716,2584.8,2584.7,7.51320151]
[1727288857182,0.16806107,2584.8,2584.7,7.51320151]
[1727288857412,0.0371716,2584.8,2584.7,7.51320151]
[1727288857623,0.16806107,2584.8,2584.7,7.51320151]
[1727288857787,0.0371716,2584.8,2584.7,7.51320151]
[1727288857988,0.16806107,2584.8,2584.7,7.51320151]
[1727288858257,0.0371716,2584.8,2584.7,7.51320151]
[1727288858397,0.16805217,2584.8,2584.7,7.51320151]
[1727288858595,0.0371716,2584.8,2584.7,7.51320151]
[1727288859110,0.16805217,2584.8,2584.7,7.51320151]
[1727288859306,0.0371716,2584.8,2584.7,7.51320151]
[1727288859520,0.16805217,2584.8,2584.7,7.51320151]
[1727288859734,0.0371716,2584.8,2584.7,7.51320151]
[1727288860024,0.16805217,2584.8,2584.7,7.51320151]
[1727288860231,0.0371716,2584.8,2584.7,3.86892]
[1727288860413,0.16805217,2584.8,2584.2,3.86953]
[1727288860617,2.03268442,2584.5,2584.3,3.86951]
[1727288860913,2.03268442,2584.5,2584.3,7.51379151]
[1727288861112,2.03268442,2584.5,2584.4,3.86937]
[1727288861320,2.03268442,2584.6,2584.5,3.86922]
[1727288861490,2.03239308,2584.6,2584.5,3.86922]
[1727288862238,2.03239308,2584.6,2584.3,3.86951]
[1727288862402,2.03239308,2584.5,2584.3,3.86951]
[1727288862603,2.51038789,2584.5,2584.1,14.95399151]
[1727288862918,2.03239308,2584.6,2584.2,3.86958]
[1727288863117,2.03239308,2584.5,2584.2,3.86958]
[1727288863505,2.03239308,2584.5,2584.3,3.86947]
[1727288863705,2.03239308,2584.6,2584.3,3.86947]
[1727288863906,2.96167852,2584.6,2584.3,3.86947]
[1727288864416,2.96167852,2584.6,2584.3,3.86944]
[1727288866740,0.92928544,2584.6,2584.3,3.86944]
[1727288867042,2.96167852,2584.6,2584.3,3.86946]
[1727288867201,8.38181626,2584.8,2584.3,3.86946]
[1727288867202,2.03239308,2584.7,2584.3,3.86946]
[1727288867399,2.03239308,2584.7,2584.3,7.51371151]
[1727288867715,2.67650934,2584.8,2584.5,7.51348151]
[1727288868240,0.0371716,2584.8,2584.7,7.51320151]
[1727288869748,0.16240074,2584.8,2584.7,7.51320151]
[1727288870159,0.16240074,2584.8,2584.7,3.86892]
[1727288872831,0.16240074,2584.8,2584.7,7.51320151]
[1727288873035,0.16240074,2584.8,2584.7,8.65142566]
[1727288876478,0.16240074,2584.8,2584.7,7.51320151]
[1727288876634,0.16240074,2584.8,2584.7,7.59010991]
[1727288882949,0.16240074,2584.8,2584.7,7.51320151]
[1727288883149,0.16240074,2584.8,2584.7,7.59011091]
[1727288884150,0.16240074,2584.8,2584.7,8.29330151]
[1727288884358,0.16240074,2584.8,2584.7,10.05953566]
[1727288884657,0.0371716,2584.8,2584.7,10.05953566]
[1727288889059,0.0371716,2584.8,2584.7,9.50953566]
[1727288891500,0.0371716,2584.8,2584.7,10.05953566]
[1727288902295,0.0371716,2584.8,2584.7,7.51320151]
[1727288903202,0.0371716,2584.8,2584.7,7.59009767]
[1727288906527,0.0371716,2584.8,2584.7,5.629924]
[1727288907033,0.0371716,2584.8,2584.7,5.55302784]
[1727288907263,0.0371716,2584.8,2584.7,6.99112435]
[1727288907563,0.0371716,2584.8,2584.7,8.07714078]
[1727288907725,0.0371716,2584.8,2584.7,8.00024427]
[1727288908126,0.0371716,2584.8,2584.7,6.31613643]
[1727288908327,0.0371716,2584.8,2584.7,7.18904427]
[1727288908586,0.0371716,2584.8,2584.7,6.63904427]
[1727288908740,0.0371716,2584.8,2584.7,6.71593544]
[1727288908941,0.0371716,2584.8,2584.7,6.63904427]
[1727288911483,0.8534716,2584.8,2584.7,3.86892]
[1727288911779,0.98030758,2584.8,2584.7,5.55302784]
[1727288912135,0.8534716,2584.8,2584.7,5.55302784]
[1727288912371,0.98030758,2584.8,2584.7,5.55302784]
[1727288917386,0.16400758,2584.8,2584.7,5.62993115]
[1727288917584,0.0371716,2584.8,2584.7,5.55302784]
[1727288922173,0.0371716,2584.8,2584.7,6.49523462]
[1727288922378,0.0371716,2584.8,2584.7,7.26343462]
[1727288928483,0.0371716,2584.8,2584.7,7.81343462]
[1727288928714,0.0371716,2584.8,2584.7,10.81343462]
[1727288928921,2.06994309,2585.5,2585.4,3.86787]
[1727288929136,0.0371716,2585.5,2585.4,5.55197784]
[1727288929302,0.15960025,2585.5,2585.4,5.55197784]
[1727288929709,2.19237174,2585.5,2585.4,5.55197784]
[1727288930519,2.97357174,2585.5,2585.4,5.55197784]
[1727288930922,0.94080025,2585.5,2585.4,5.55197784]
[1727288931098,2.9734255,2585.5,2585.4,5.55197784]
[1727288931820,0.8156,2585.4,2585.1,3.86821]
[1727288932117,0.8156,2585.2,2585.1,3.86821]
[1727288932535,0.93811805,2585.2,2585.1,3.86821]
[1727288933478,2.97085989,2585.2,2585.1,3.86821]
[1727288933642,0.93811805,2585.2,2585.1,3.86821]
[1727288935207,2.97083417,2585.2,2585.1,3.86821]
[1727288935915,2.97082689,2585.2,2585.1,3.86821]
[1727288936116,0.93811805,2585.2,2585.1,3.86821]
[1727288941065,0.93811805,2585.2,2585.0,5.55257784]
[1727288941362,0.8216,2585.1,2584.8,3.86874]
[1727288941512,0.8216,2584.8,2584.6,3.86895]
[1727288941717,0.12222302,2584.7,2584.6,3.86895]
[1727288941917,2.85453462,2584.8,2584.5,5.55329784]
[1727288942125,2.85453462,2584.8,2584.7,3.86892]
[1727288942418,2.85453462,2584.8,2584.7,5.55302784]
[1727288943243,0.8216,2584.8,2584.7,5.55302784]
[1727288943832,2.85453462,2584.8,2584.7,5.55302784]
[1727288944159,0.8216,2584.8,2584.7,5.55302784]
[1727288944864,0.94382302,2584.8,2584.7,5.55302784]
[1727288945855,0.94382302,2584.8,2584.5,9.42241784]
[1727288945856,2.97611037,2584.8,2584.5,9.42241784]
[1727288946431,2.97611037,2584.8,2584.6,3.869]
[1727288946626,0.806,2584.7,2584.5,3.86911]
[1727288946833,0.806,2584.6,2584.5,3.86911]
[1727288947058,0.92822302,2584.6,2584.5,3.86911]
[1727288947379,0.92822302,2584.6,2584.1,3.86981]
[1727288947380,2.15451037,2584.6,2584.1,3.86981]
[1727288947537,0.806,2584.3,2584.1,3.86981]
[1727288947892,0.806,2584.2,2584.1,3.86981]
[1727288948179,0.92822302,2584.2,2584.0,3.86984]
[1727288948519,0.92822302,2584.2,2583.9,5.55411784]
[1727288949006,0.7698,2584.1,2583.7,5.55446784]
[1727288949284,0.7698,2584.1,2583.9,3.87003]
[1727288949436,0.12069349,2584.0,2583.9,3.87003]
[1727288950345,0.12069349,2584.0,2583.9,5.55413784]
[1727288951130,0.12069349,2584.0,2583.9,6.1839925]
[1727288951927,0.7571,2584.4,2584.2,3.86958]
[1727288952129,0.12068454,2584.3,2584.2,3.86958]
[1727288957204,0.12068454,2584.3,2584.2,7.52108588]
[1727288957563,0.8294,2584.6,2584.3,3.86949]
[1727288959793,0.12081977,2584.5,2584.3,3.86949]
[1727288960414,0.12081977,2584.5,2584.4,3.86937]
[1727288960614,0.12081977,2584.5,2584.4,7.52087588]
[1727288961203,0.12081977,2584.5,2584.4,3.86937]
[1727288962815,0.12081977,2584.5,2584.4,7.52087588]
[1727288963513,0.7504,2584.8,2584.4,3.65150588]
[1727288963729,0.7504,2584.8,2584.6,3.869]
[1727288964292,0.7504,2584.8,2584.7,3.86892]
[1727288964492,0.8028,2585.1,2584.7,3.86892]
[1727288964797,2.11944805,2585.1,2584.7,3.86892]
[1727288967139,0.8251,2585.0,2584.7,3.86888]
[1727288969847,0.8251,2585.0,2584.8,3.86875]
[1727288969996,0.8251,2585.0,2584.7,3.86883]
[1727288970192,0.8251,2585.0,2584.8,3.86877]
[1727288973831,0.8251,2585.0,2584.7,3.8689]
[1727288974528,0.8251,2585.0,2584.7,7.73772]
[1727288974819,0.7523,2584.8,2584.5,3.8691]
[1727288975533,0.12121341,2584.7,2584.5,3.8691]
[1727288975923,0.7523,2584.8,2584.5,3.8691]
[1727288976435,0.12121341,2584.7,2584.5,3.8691]
[1727288976631,0.7523,2584.8,2584.5,3.8691]
[1727288977137,0.12121341,2584.7,2584.5,3.8691]
[1727288977456,0.7523,2584.8,2584.5,3.8691]
[1727288977634,0.12121341,2584.6,2584.5,3.8691]
[1727288977831,0.7523,2584.8,2584.5,3.8691]
[1727288978063,0.12121341,2584.6,2584.5,3.8691]
[1727288978561,0.7523,2584.8,2584.5,3.8691]
[1727288979165,0.12120444,2584.7,2584.5,3.8691]
[1727288979344,0.12120444,2584.7,2584.5,3.86922]
[1727288979582,0.7523,2584.8,2584.4,9.42324877]
[1727288979786,1.44571027,2584.8,2584.4,9.42324877]
[1727288979950,0.12120444,2584.7,2584.5,3.86908]
[1727288980349,1.44571027,2584.8,2584.5,3.86908]
[1727288980549,0.12120444,2584.6,2584.5,3.86908]
[1727288980893,0.7523,2584.8,2584.5,3.86908]
[1727288981048,0.7523,2584.8,2584.6,1.68460877]
[1727288981391,0.12120444,2584.7,2584.6,5.55365877]
[1727288981789,0.7523,2584.8,2584.6,5.55365877]
[1727288981952,0.12120444,2584.7,2584.6,5.55365877]
[1727288982288,0.7523,2584.8,2584.6,5.55365877]
[1727288982722,0.12120444,2584.7,2584.6,5.55365877]
[1727288983016,0.7523,2584.8,2584.6,5.55365877]
[1727288983377,0.12120444,2584.7,2584.6,5.55365877]
[1727288983879,0.7523,2584.8,2584.6,5.55365877]
[1727288984099,0.12120444,2584.7,2584.6,5.55365877]
[1727288984474,0.7523,2584.8,2584.6,5.55365877]
[1727288984672,0.12120444,2584.7,2584.6,5.55365877]
[1727288984889,2.02946414,2585.0,2584.9,3.86862]
[1727288985307,0.7892,2585.1,2584.9,3.86862]
[1727288985308,2.81866414,2585.1,2584.9,3.86862]
[1727288985516,2.02946414,2585.1,2585.0,3.86847]
[1727288985675,3.25125697,2585.3,2585.1,3.86831]
[1727288985876,0.8159,2585.3,2585.2,1.68460877]
[1727288986291,0.8159,2585.3,2585.1,3.86823]
[1727288986506,0.8159,2585.3,2585.1,7.73647]
[1727288986973,0.8159,2585.3,2585.1,3.86823]
[1727288988275,2.02966428,2585.2,2585.1,3.86823]
[1727288988474,2.02966428,2585.2,2585.1,4.89060388]
[1727288988874,2.02960897,2585.2,2585.1,4.89060388]
[1727288989087,2.02960897,2585.3,2585.1,4.89060388]
[1727288989307,2.02960897,2585.3,2585.2,1.68460877]
[1727288989712,2.15104598,2585.3,2585.2,1.68460877]
[1727288991592,2.15104598,2585.3,2585.1,3.86828]
[1727288993880,2.15015994,2585.3,2585.1,3.86828]
[1727288994105,2.15015994,2585.3,2585.2,1.68460877]
[1727288994425,0.12143701,2585.3,2585.2,5.55277877]
[1727288994807,2.86559453,2585.5,2585.2,5.55277877]
[1727288995113,0.8368716,2585.5,2585.2,1.68460877]
[1727288995411,0.12184841,2585.4,2585.3,3.868]
[1727288998512,0.12184841,2585.4,2585.2,6.10805765]
[1727289000043,0.12184841,2585.4,2585.3,3.86802]
[1727289001196,2.15057134,2585.4,2585.3,3.86802]
[1727289002059,0.12184841,2585.4,2585.3,3.86802]
[1727289002240,0.12184841,2585.4,2585.2,5.55275877]
[1727289002537,2.15088491,2585.4,2585.1,4.65371]
[1727289002691,2.15088491,2585.4,2585.1,5.55291877]
[1727289002692,2.90358491,2585.4,2585.1,5.55291877]
[1727289002897,5.8971365,2585.3,2584.9,3.86853]
[1727289003221,5.8971365,2585.3,2584.9,7.73708]
[1727289003608,2.0290365,2585.3,2584.9,3.86853]
[1727289003796,2.0290365,2585.3,2585.0,5.55298877]
[1727289005697,2.0290365,2585.3,2585.2,5.55277877]
[1727289005929,2.15088491,2585.4,2585.2,5.55277877]
[1727289006202,2.15088491,2585.4,2585.3,3.86802]
[1727289007024,0.12184841,2585.4,2585.3,3.86802]
[1727289007228,2.15151771,2585.4,2585.3,3.86802]
[1727289007639,2.15151771,2585.4,2585.2,1.68460877]
[1727289007842,2.15151771,2585.4,2585.3,3.86802]
[1727289008625,0.12184841,2585.4,2585.3,3.86802]
[1727289008820,0.12184841,2585.4,2585.3,4.81008888]
[1727289009136,0.12184841,2585.4,2585.3,5.71665837]
[1727289009340,0.12184841,2585.4,2585.3,5.71664585]
[1727289009736,0.12184841,2585.4,2585.3,5.63978888]
[1727289011653,0.12184841,2585.4,2585.3,5.71664468]
[1727289015053,0.12184841,2585.4,2585.3,5.63978888]
[1727289015453,0.12184841,2585.4,2585.3,5.71664504]
[1727289019068,0.12184841,2585.4,2585.3,5.7166448]
[1727289022948,0.12184841,2585.4,2585.3,5.63978888]
[1727289023163,0.12184841,2585.4,2585.3,4.69772]
[1727289023381,0.12184841,2585.4,2585.3,3.86802]
[1727289024690,0.12184841,2585.4,2585.3,4.73177575]
[1727289024854,0.12184841,2585.4,2585.3,5.28177588]
[1727289025055,0.12184841,2585.4,2585.3,5.20492]
[1727289025259,0.0371716,2585.5,2585.4,3.86787]
[1727289025464,0.16029854,2585.5,2585.4,5.55247877]
[1727289025905,0.16029854,2585.5,2585.4,6.31567877]
[1727289026213,0.16029854,2585.5,2585.4,7.88343054]
[1727289026761,0.0371716,2585.5,2585.4,7.88343054]
[1727289030278,2.06460435,2586.3,2586.2,3.86667]
[1727289030279,0.0371716,2586.3,2586.2,3.86667]
[1727289030481,0.16058454,2586.3,2586.2,6.32462577]
[1727289044078,0.16058454,2586.3,2586.2,7.2291077]
[1727289044380,0.16058454,2586.3,2586.2,7.7791077]
[1727289044540,0.0371716,2586.3,2586.2,7.70232577]
[1727289045085,0.0371716,2587.1,2586.2,7.70232577]
[1727289045086,0.0371716,2587.1,2587.0,3.86548]
[1727289045390,0.16179566,2587.1,2587.0,3.86548]
[1727289054803,0.16179566,2587.1,2586.9,1.68460877]
[1727289054977,0.16179566,2587.1,2586.7,3.86578]
[1727289054978,0.97259566,2587.1,2586.7,5.55038877]
[1727289055178,0.97259566,2587.1,2586.9,5.55015877]
[1727289055590,0.16179566,2587.1,2587.0,3.86548]
[1727289060065,0.16179566,2587.1,2587.0,3.94219293]
[1727289060507,0.16179566,2587.1,2587.0,3.86548]
[1727289060710,0.16179566,2587.1,2587.0,4.88343388]
[1727289061064,0.16179566,2587.1,2587.0,4.96013677]
[1727289061381,0.16179566,2587.1,2587.0,4.88343388]
[1727289061585,0.16179566,2587.1,2587.0,4.96013662]
[1727289062506,0.0371716,2587.1,2587.0,4.96013662]
[1727289063118,0.0371716,2587.1,2587.0,4.88343388]
[1727289063346,0.0371716,2587.1,2587.0,4.96013568]
[1727289063504,0.0371716,2587.1,2587.0,6.31760495]
[1727289064334,0.0371716,2587.1,2587.0,9.24093388]
[1727289064640,0.0371716,2587.8,2587.7,3.86443]
[1727289064782,0.0371716,2587.8,2587.7,7.58151105]
[1727289064981,0.16317083,2587.8,2587.7,7.50487075]
[1727289067529,0.16317083,2587.8,2587.7,3.86443]
[1727289067701,0.0371716,2587.8,2587.7,3.86443]
[1727289068027,0.16019068,2587.8,2587.6,3.86451]
[1727289068529,0.7879,2587.7,2587.3,3.86496]
[1727289068713,0.7879,2587.6,2587.2,3.86517]
[1727289069032,0.12301908,2587.5,2587.2,3.86517]
[1727289069925,0.12301908,2587.5,2586.7,0.63301888]
[1727289069926,4.64555,2587.4,2586.7,0.63301888]
[1727289070086,3.86529,2587.2,2586.7,3.86584]
[1727289070284,0.7806,2587.1,2586.7,3.86584]
[1727289070531,4.64594,2587.1,2586.7,3.86584]
[1727289070683,4.64594,2587.1,2586.6,3.64044075]
[1727289070684,0.12284923,2587.0,2586.9,3.86563]
[1727289070890,0.12284923,2587.0,2586.9,8.43145351]
[1727289071124,0.7806,2587.4,2587.2,3.86514]
[1727289071329,3.0371716,2587.8,2587.3,7.50547075]
[1727289071513,1.47074016,2587.7,2587.4,3.86484]
[1727289071724,1.47074016,2587.7,2587.3,7.50547075]
[1727289072011,5.33526016,2587.7,2587.3,3.86502]
[1727289074606,3.86458,2587.6,2587.0,3.86544]
[1727289074796,4.64536,2587.5,2587.0,3.86537]
[1727289076312,0.8143,2587.4,2586.6,3.86596]
[1727289076526,4.67927,2587.4,2586.9,3.86561]
[1727289076844,0.8143,2587.0,2586.7,3.86589]
[1727289077046,0.8143,2587.0,2586.8,3.86578]
[1727289077402,0.8143,2587.0,2586.3,3.86651]
[1727289077403,0.8143,2587.0,2586.5,7.50655075]
[1727289077619,0.8143,2587.0,2586.5,7.73225]